fUSD/lending_fUSD_20241210
["ID","MTS","AMOUNT","RATE_DAILY","PERIOD"]
[344880354,1733849459019,-500.0,0.00010958,2]
[344880355,1733849459031,-2616.86,0.00010958,2]
[344880356,1733849459042,-3728.05594613,0.00010958,2]
[344880357,1733849459225,-2798.84405387,0.00010958,2]
[344880358,1733849459236,-687.18,0.00010958,2]
[344880359,1733849459247,-500.0,0.00010958,2]
[344880360,1733849459258,-687.25622858,0.00010958,2]
[344880361,1733849459269,-6526.9,0.00010958,2]
[344880362,1733849459280,-2616.86,0.00010958,2]
[344880363,1733849459292,-294.66841594,0.00010958,2]
[344880364,1733849459303,-6526.9,0.00010958,2]
[344880365,1733849459323,-6526.9,0.00010958,2]
[344880366,1733849459336,-2616.86,0.00010958,2]
[344880367,1733849459347,-6526.9,0.00010958,2]
[344880368,1733849459359,-2616.86,0.00010958,2]
[344880369,1733849459373,-2001.55,0.00010958,2]
[344880370,1733849459389,-6526.9,0.00010958,2]
[344880371,1733849459400,-2616.86,0.00010958,2]
[344880372,1733849459412,-2001.55,0.00010958,2]
[344880373,1733849459424,-2616.86,0.00010958,2]
[344880374,1733849459435,-2001.55,0.00010958,2]
[344880375,1733849459446,-6526.9,0.00010958,2]
[344880376,1733849459456,-2616.86,0.00010958,2]
[344880377,1733849459468,-2001.55,0.00010958,2]
[344880378,1733849459479,-2616.86,0.00010958,2]
[344880379,1733849459490,-6526.9,0.00010958,2]
[344880380,1733849459501,-2001.55,0.00010958,2]
[344880381,1733849459512,-2616.86,0.00010958,2]
[344880382,1733849459523,-6526.9,0.00010958,2]
[344880383,1733849459534,-500.0,0.00010958,2]
[344880384,1733849459547,-2001.55,0.00010958,2]
[344880385,1733849459559,-2616.86,0.00010958,2]
[344880386,1733849459571,-6526.9,0.00010958,2]
[344880387,1733849459583,-605.12816457,0.00010958,2]
[344880388,1733849459594,-2001.55,0.00010958,2]
[344880389,1733849459605,-6526.9,0.00010958,2]
[344880390,1733849459616,-2616.86,0.00010958,2]
[344880391,1733849459628,-2001.55,0.00010958,2]
[344880392,1733849459639,-6526.9,0.00010958,2]
[344880393,1733849459651,-2616.86,0.00010958,2]
[344880394,1733849459662,-2001.55,0.00010958,2]
[344880395,1733849459674,-2616.86,0.00010958,2]
[344880396,1733849459685,-2616.86,0.00010958,2]
[344880397,1733849459697,-2001.55,0.00010958,2]
[344880398,1733849459707,-6526.9,0.00010958,2]
[344880399,1733849459718,-2616.86,0.00010958,2]
[344880400,1733849459729,-2001.55,0.00010958,2]
[344880401,1733849459739,-500.0,0.00010958,2]
[344880402,1733849459750,-6526.9,0.00010958,2]
[344880403,1733849459760,-2616.86,0.00010958,2]
[344880404,1733849459771,-2001.55,0.00010958,2]
[344880405,1733849459781,-211.39557329,0.00010958,2]
[344880406,1733849459791,-6526.9,0.00010958,2]
[344880407,1733849459802,-2001.55,0.00010958,2]
[344880408,1733849459813,-2616.86,0.00010958,2]
[344880409,1733849459836,-6526.9281291,0.00010958,2]
[344880410,1733849459847,-2616.86,0.00010958,2]
[344880411,1733849459858,-2001.55,0.00010958,2]
[344880412,1733849459870,-500.88981781,0.00010958,2]
[344880413,1733849459881,-2616.86,0.00010958,2]
[344880414,1733849459892,-2001.55,0.00010958,2]
[344880415,1733849459904,-2616.86,0.00010958,2]
[344880416,1733849459914,-2001.55,0.00010958,2]
[344880417,1733849459925,-2616.87947804,0.00010958,2]
[344880418,1733849459935,-2001.55,0.00010958,2]
[344880419,1733849459946,-2001.55,0.00010958,2]
[344880420,1733849459956,-688.52,0.00010958,2]
[344880421,1733849459967,-2001.55,0.00010958,2]
[344880422,1733849459978,-688.52,0.00010958,2]
[344880423,1733849459988,-2001.55,0.00010958,2]
[344880424,1733849459998,-2001.55,0.00010958,2]
[344880425,1733849460008,-688.52,0.00010958,2]
[344880426,1733849460018,-2001.55,0.00010958,2]
[344880427,1733849460028,-688.52,0.00010958,2]
[344880428,1733849460038,-688.52,0.00010958,2]
[344880429,1733849460049,-2001.55,0.00010958,2]
[344880430,1733849460060,-688.52,0.00010958,2]
[344880431,1733849460071,-2001.71,0.00010958,2]
[344880432,1733849460082,-1369.84,0.00010958,2]
[344880433,1733849460093,-688.52,0.00010958,2]
[344880434,1733849460103,-1369.84,0.00010958,2]
[344880435,1733849460113,-688.52,0.00010958,2]
[344880436,1733849460124,-1369.84,0.00010958,2]
[344880437,1733849460135,-688.52,0.00010958,2]
[344880438,1733849460145,-1369.84,0.00010958,2]
[344880439,1733849460155,-500.0,0.00010958,2]
[344880440,1733849460165,-1369.84,0.00010958,2]
[344880441,1733849460175,-688.52,0.00010958,2]
[344880442,1733849460185,-500.0,0.00010958,2]
[344880443,1733849460196,-1369.84,0.00010958,2]
[344880444,1733849460206,-500.0,0.00010958,2]
[344880445,1733849460216,-688.52,0.00010958,2]
[344880446,1733849460226,-1369.84,0.00010958,2]
[344880447,1733849460236,-500.0,0.00010958,2]
[344880448,1733849460247,-688.52,0.00010958,2]
[344880449,1733849460257,-1369.84,0.00010958,2]
[344880450,1733849460267,-500.0,0.00010958,2]
[344880451,1733849460277,-688.52,0.00010958,2]
[344880452,1733849460287,-1369.84,0.00010958,2]
[344880453,1733849460298,-500.0,0.00010958,2]
[344880454,1733849460309,-688.52,0.00010958,2]
[344880455,1733849460324,-1369.84,0.00010958,2]
[344880456,1733849460335,-500.0,0.00010958,2]
[344880457,1733849460346,-688.52,0.00010958,2]
[344880458,1733849460360,-1369.84,0.00010958,2]
[344880459,1733849460371,-500.0,0.00010958,2]
[344880460,1733849460387,-688.52,0.00010958,2]
[344880461,1733849460397,-1369.84,0.00010958,2]
[344880462,1733849460408,-688.52,0.00010958,2]
[344880463,1733849460419,-500.0,0.00010958,2]
[344880464,1733849460431,-1369.84,0.00010958,2]
[344880465,1733849460442,-688.52,0.00010958,2]
[344880466,1733849460454,-1369.84,0.00010958,2]
[344880467,1733849460465,-500.0,0.00010958,2]
[344880468,1733849460476,-688.52,0.00010958,2]
[344880469,1733849460487,-500.0,0.00010958,2]
[344880470,1733849460497,-1369.84,0.00010958,2]
[344880471,1733849460508,-688.52,0.00010958,2]
[344880472,1733849460518,-629.58707738,0.00010958,2]
[344880473,1733849460530,-1369.84,0.00010958,2]
[344880474,1733849460542,-688.52,0.00010958,2]
[344880475,1733849460554,-1369.84,0.00010958,2]
[344880476,1733849460570,-688.52,0.00010958,2]
[344880477,1733849460588,-4435.81,0.00010958,2]
[344880478,1733849460599,-1369.84,0.00010958,2]
[344880479,1733849460609,-688.52,0.00010958,2]
[344880480,1733849460619,-4435.81,0.00010958,2]
[344880481,1733849460630,-1369.84,0.00010958,2]
[344880482,1733849460640,-688.66,0.00010958,2]
[344880483,1733849460650,-4435.81,0.00010958,2]
[344880484,1733849460660,-1369.84,0.00010958,2]
[344880485,1733849460670,-4435.81,0.00010958,2]
[344880486,1733849460680,-1369.84,0.00010958,2]
[344880487,1733849460690,-4435.81,0.00010958,2]
[344880488,1733849460700,-1369.84,0.00010958,2]
[344880489,1733849460709,-4435.81,0.00010958,2]
[344880490,1733849460719,-1369.84,0.00010958,2]
[344880491,1733849460729,-4435.81,0.00010958,2]
[344880492,1733849460738,-2405.59,0.00010958,2]
[344880493,1733849460748,-1369.86201666,0.00010958,2]
[344880494,1733849460758,-4435.81,0.00010958,2]
[344880495,1733849460768,-2405.59,0.00010958,2]
[344880496,1733849460778,-4435.81,0.00010958,2]
[344880497,1733849460789,-2405.59,0.00010958,2]
[344880498,1733849460798,-1872.37241801,0.00010958,2]
[344880499,1733849460893,-2001.0,0.00010958,2]
[344880500,1733849704800,191.0,0.00010958,30]
[344880512,1733849777477,1074.13,8.219e-05,2]
[344880514,1733849862142,1056.0,9.129e-05,2]
[344880515,1733849883260,632.16694546,8.673e-05,2]
[344880521,1733850321974,323.79066282,9e-05,2]
[344880582,1733850631615,-486.87103,9.517e-05,2]
[344880583,1733850631627,-299.35897,9.517e-05,2]
[344880584,1733850631641,-340.03727444,9.52e-05,2]
[344880585,1733850631732,-1248.6900054,9.52e-05,2]
[344880586,1733850631953,-786.64180338,9.52e-05,2]
[344880587,1733850631966,-6597.729926,9.52e-05,2]
[344880717,1733850637631,-436.35509392,9.52e-05,2]
[344880718,1733850637717,-274.176,9.52e-05,2]
[344880719,1733850637759,-565.25298077,9.52e-05,2]
[344880720,1733850637769,-14926.90099078,9.52e-05,2]
[344880721,1733850637779,-1020.60088845,9.538e-05,2]
[344880722,1733850637819,-479.39911155,9.538e-05,2]
[344880723,1733850637829,-200.0,9.579e-05,2]
[344880724,1733850637839,-250.0,9.605e-05,2]
[344880725,1733850637849,-1056.0,9.61e-05,2]
[344880726,1733850637858,-820.68,9.619e-05,2]
[344880727,1733850637868,-265.34,9.628e-05,2]
[344880728,1733850637878,-1000.0,9.628e-05,2]
[344880729,1733850637893,-163.21,9.692e-05,2]
[344880730,1733850637903,-295.5,9.712e-05,2]
[344880731,1733850637913,-250.0,9.741e-05,2]
[344880732,1733850637923,-167.9,9.757e-05,2]
[344880733,1733850637933,-170.18,9.852e-05,2]
[344880734,1733850637943,-198.19,9.863e-05,2]
[344880735,1733850637953,-1056.0,0.00010116,2]
[344880736,1733850637963,-495.34,0.00010137,2]
[344880737,1733850637973,-198.19,0.00010228,2]
[344880738,1733850637984,-1015.18,0.00010325,2]
[344880739,1733850637993,-1009.38,0.00010397,2]
[344880740,1733850638004,-491.694,0.0001041,2]
[344880741,1733850638015,-1010.92,0.00010419,2]
[344880742,1733850638025,-989.04,0.00010464,2]
[344880743,1733850638035,-1074.13,0.00010469,2]
[344880744,1733850638045,-289.53,0.00010548,2]
[344880745,1733850638055,-150.0,0.00010548,2]
[344880746,1733850638066,-1014.83,0.00010548,2]
[344880747,1733850638075,-198.19,0.00010593,2]
[344880748,1733850638086,-169.245,0.0001064,2]
[344880749,1733850638096,-1056.0,0.00010648,2]
[344880750,1733850638106,-200.0,0.00010662,2]
[344880751,1733850638116,-1016.17,0.00010711,2]
[344880752,1733850638126,-2557.7306185,0.00010758,2]
[344880753,1733850638155,-1581.15336599,0.00010758,2]
[344880754,1733850638165,-503.40848701,0.00010786,2]
[344880755,1733850638177,-3009.80351299,0.00010786,2]
[344880756,1733850638187,-593.49648701,0.00010822,2]
[344880880,1733850639716,-227.18351299,0.00010822,2]
[344880882,1733850639726,-1000.0,0.00010831,2]
[344880884,1733850639738,-885.0854,0.00010857,2]
[344880886,1733850639747,-21.07053049,0.00010858,2]
[344880888,1733850639759,-360.94500803,0.00010858,2]
[344880891,1733850639775,-2897.60307074,0.00010858,2]
[344880892,1733850639784,-173.23040374,0.00010858,2]
[344880895,1733850639794,-3099.0647,0.00010858,2]
[344880896,1733850639803,-4019.0,0.00010858,2]
[344880899,1733850639815,-509.005,0.00010858,2]
[344880901,1733850639824,-5000.0,0.00010858,2]
[344880902,1733850639834,-152.98222703,0.000109,2]
[344880904,1733850639844,-152.98222703,0.000109,2]
[344880906,1733850639854,-42028.54564144,0.000109,2]
[344880909,1733850639867,-33855.54642663,0.000109,2]
[344880911,1733850639877,-3279.61860925,0.00010929,2]
[344880913,1733850639890,-173.23040373,0.00010929,2]
[344880915,1733850639900,-3044.62738142,0.00010934,2]
[344880917,1733850639910,-42262.75327827,0.0001095,2]
[344880932,1733850640050,-3597.12099452,0.0001095,2]
[344880934,1733850640062,-2134.4918249,0.0001095,2]
[344880936,1733850640073,-281.0,0.0001095,2]
[344880939,1733850640085,-8068.85064037,0.0001095,2]
[344880941,1733850640097,-1678.887,0.0001095,2]
[344881201,1733850642682,-2099.99999996,0.0001095,2]
[344881210,1733850642746,-1103.71140171,0.0001095,2]
[344881213,1733850642757,-43538.18741086,0.0001095,2]
[344881215,1733850642768,-355.11100002,0.0001095,2]
[344881223,1733850642807,-23875.34603964,0.0001095,2]
[344881225,1733850642820,-32130.42091203,0.0001095,2]
[344881227,1733850642831,-1023.33040408,0.0001095,2]
[344881232,1733850642874,-43880.53939048,0.0001095,2]
[344881235,1733850642886,-12551.49995,0.0001095,2]
[344881245,1733850642977,-759.2723987,0.0001095,2]
[344881252,1733850643038,-1000.24826965,0.0001095,2]
[344881259,1733850643095,-719.25,0.0001095,2]
[344881419,1733850645630,-6115.20416325,0.0001095,2]
[344881420,1733850645645,-22824.77492156,0.0001095,2]
[344881421,1733850645655,-3876.5,0.0001095,2]
[344881422,1733850645664,-8582.93563655,0.00010953,2]
[344881423,1733850645673,-26859.54296358,0.00010955,2]
[344881424,1733850645683,-1000.0,0.00010957,2]
[344881425,1733850645693,-33039.02806488,0.00010957,2]
[344881426,1733850645814,-68913.94958678,0.00010957,2]
[344881427,1733850645826,-775.74933779,0.00010957,2]
[344881428,1733850645994,-322.26095015,0.00010957,2]
[344881429,1733850646007,-9569.2002,0.00010957,2]
[344881432,1733850646110,-547.93392286,0.00010957,2]
[344881437,1733850646170,-7433.9,0.00010957,2]
[344881438,1733850646194,-95737.22962711,0.00010957,2]
[344881442,1733850742711,1038.22,8.219e-05,2]
[344881447,1733851497966,1810.41,9.469e-05,2]
[344881448,1733851582958,707.59,9.423e-05,2]
[344881450,1733851668964,250.0,9.45e-05,2]
[344881451,1733851682265,1009.7,8.219e-05,2]
[344881473,1733851728281,400.95056259,0.0001,120]
[344881496,1733851831807,-300.0,9.54e-05,2]
[344881497,1733851831820,-23900.0,9.541e-05,2]
[344881498,1733851831829,-200.0,9.566e-05,2]
[344881499,1733851831839,-1500.0,9.592e-05,2]
[344881500,1733851831848,-1000.0,9.609e-05,2]
[344881501,1733851831857,-250.0,9.634e-05,2]
[344881502,1733851831866,-3226.84,9.712e-05,2]
[344881503,1733851831875,-150.0,9.77e-05,2]
[344881504,1733851831884,-13677.13952556,9.771e-05,2]
[344881505,1733851831895,-6659.50274779,9.771e-05,2]
[344881506,1733851831917,-9500.0,9.771e-05,2]
[344881507,1733851831928,-1731.53252089,9.771e-05,2]
[344881508,1733851831939,-27795.77520576,9.771e-05,2]
[344881509,1733851831948,-166.67,9.777e-05,2]
[344881510,1733851831957,-200.0,9.804e-05,2]
[344881511,1733851831966,-198.19,9.863e-05,2]
[344881512,1733851831976,-165.89,9.879e-05,2]
[344881513,1733851831985,-512.3,9.929e-05,2]
[344881514,1733851831994,-209.48,9.988e-05,2]
[344881515,1733851832004,-142572.15627814,0.0001,2]
[344881516,1733851832012,-166.47,0.00010077,2]
[344881517,1733851832021,-1001.45,0.00010111,2]
[344881518,1733851832030,-980.26,0.00010157,2]
[344881519,1733851832039,-150.0,0.00010178,2]
[344881520,1733851832048,-150.0,0.00010178,2]
[344881521,1733851832058,-150.0,0.00010178,2]
[344881522,1733851832070,-300.0,0.00010178,2]
[344881523,1733851832079,-150.0,0.00010178,2]
[344881524,1733851832087,-150.0,0.00010178,2]
[344881525,1733851832097,-150.0,0.00010178,2]
[344881526,1733851832111,-1000.86,0.00010194,2]
[344881527,1733851832119,-985.48,0.00010247,2]
[344881528,1733851832128,-974.74,0.00010274,2]
[344881529,1733851832137,-733.87,0.00010274,2]
[344881530,1733851832146,-1328.59,0.00010274,2]
[344881531,1733851832155,-435.34,0.00010274,2]
[344881532,1733851832162,-435.34,0.00010274,2]
[344881533,1733851832172,-728.62,0.00010274,2]
[344881534,1733851832181,-150.26,0.00010278,2]
[344881536,1733851832191,-150.0,0.00010278,2]
[344881537,1733851832201,-150.0,0.00010278,2]
[344881538,1733851832210,-150.0,0.00010278,2]
[344881539,1733851832220,-986.64,0.00010322,2]
[344881540,1733851832230,-152.37,0.00010378,2]
[344881541,1733851832240,-487.103,0.0001041,2]
[344881542,1733851832249,-1013.03,0.00010426,2]
[344881543,1733851832259,-1009.7,0.00010448,2]
[344881544,1733851832269,-1014.93,0.00010482,2]
[344881545,1733851832278,-420.0,0.00010494,2]
[344881547,1733851832287,-707.59,0.00010601,2]
[344881549,1733851832297,-255.0,0.00010747,2]
[344881551,1733851832307,-1000.0,0.0001081,2]
[344881553,1733851832324,-3000.0,0.0001085,2]
[344881555,1733851832337,-5000.0,0.00010857,2]
[344881556,1733851832347,-1013.2,0.00010857,2]
[344881557,1733851832356,-982.93,0.00010857,2]
[344881558,1733851832366,-989.18,0.00010857,2]
[344881559,1733851832376,-428.84608696,0.00010858,2]
[344881560,1733851832386,-165.59749044,0.00010858,2]
[344881561,1733851832395,-1000.0,0.000109,2]
[344881562,1733851832405,-428.84608695,0.00010929,2]
[344881563,1733851832415,-3876.5,0.0001095,2]
[344881564,1733851832425,-981.72,0.0001095,2]
[344881565,1733851832435,-592.91868181,0.00010955,2]
[344881566,1733851832445,-2810.57,0.00010955,2]
[344881567,1733851832455,-169.245,0.00010955,2]
[344881568,1733851832466,-10910.11703266,0.00010956,2]
[344881569,1733851832485,-30194.16771978,0.00010956,2]
[344881570,1733851832496,-300.01600133,0.00010956,3]
[344881571,1733851832507,-1927.0,0.00010957,2]
[344881572,1733851832517,-988.25,0.00010957,2]
[344881573,1733851832527,-281995.8731437,0.00010957,2]
[344881574,1733851832537,-172204.14243296,0.00010957,2]
[344881575,1733851832549,-47336.28097398,0.00010957,2]
[344881576,1733851832559,-199354.0696468,0.00010957,2]
[344881577,1733851832587,-353.999985,0.00010957,2]
[344881578,1733851832601,-2094.7,0.00010957,2]
[344881579,1733851832630,-46882.85383235,0.00010957,2]
[344881580,1733851832640,-126749.68145404,0.00010957,2]
[344881581,1733851832650,-1000.0,0.00010957,2]
[344881582,1733851832659,-500.0,0.00010957,2]
[344881583,1733851832669,-200.0,0.00010957,2]
[344881584,1733851832679,-200.0,0.00010957,2]
[344881585,1733851832689,-164.11764081,0.00010957,2]
[344881586,1733851832699,-331.44012911,0.00010957,2]
[344881587,1733851832709,-500.0,0.00010957,2]
[344881588,1733851832719,-500.0,0.00010957,2]
[344881589,1733851832729,-500.0,0.00010957,2]
[344881590,1733851832740,-500.0,0.00010957,2]
[344881591,1733851832750,-500.0,0.00010957,2]
[344881592,1733851832759,-500.0,0.00010957,2]
[344881593,1733851832768,-182.00127516,0.00010957,2]
[344881594,1733851832778,-500.0,0.00010957,2]
[344881595,1733851832789,-500.0,0.00010957,2]
[344881596,1733851832798,-500.0,0.00010957,2]
[344881597,1733851832808,-195.03934826,0.00010957,2]
[344881598,1733851832828,-500.0,0.00010957,2]
[344881599,1733851832838,-150.570144,0.00010958,2]
[344881600,1733851832848,-150.570144,0.00010958,2]
[344881601,1733851832858,-150.570144,0.00010958,2]
[344881602,1733851832867,-150.570144,0.00010958,2]
[344881603,1733851832877,-150.570144,0.00010958,2]
[344881604,1733851832886,-150.57014,0.00010958,2]
[344881605,1733851832895,-150.57014,0.00010958,2]
[344881606,1733851832905,-150.57014,0.00010958,2]
[344881607,1733851832914,-150.57014,0.00010958,2]
[344881608,1733851832923,-150.57014,0.00010958,2]
[344881609,1733851832932,-150.57014,0.00010958,2]
[344881610,1733851832942,-150.57014,0.00010958,2]
[344881611,1733851832951,-150.57014,0.00010958,2]
[344881612,1733851832961,-150.57014,0.00010958,2]
[344881613,1733851832970,-150.57014,0.00010958,2]
[344881614,1733851832979,-174.193306,0.00010958,2]
[344881615,1733851832989,-174.193306,0.00010958,2]
[344881616,1733851832998,-174.193306,0.00010958,2]
[344881617,1733851833008,-183.89224217,0.00010958,2]
[344881618,1733851833017,-710.24,0.00010958,2]
[344881619,1733851833028,-710.24,0.00010958,2]
[344881620,1733851833038,-710.24,0.00010958,2]
[344881621,1733851833048,-710.24,0.00010958,2]
[344881622,1733851833057,-710.24,0.00010958,2]
[344881623,1733851833074,-710.24,0.00010958,2]
[344881624,1733851833084,-710.24,0.00010958,2]
[344881625,1733851833095,-710.24,0.00010958,2]
[344881626,1733851833106,-710.24,0.00010958,2]
[344881627,1733851833117,-710.24,0.00010958,2]
[344881628,1733851833130,-710.24,0.00010958,2]
[344881629,1733851833141,-710.24,0.00010958,2]
[344881630,1733851833152,-710.24,0.00010958,2]
[344881631,1733851833163,-710.24,0.00010958,2]
[344881632,1733851833174,-710.24,0.00010958,2]
[344881633,1733851833185,-710.24,0.00010958,2]
[344881634,1733851833197,-710.24,0.00010958,2]
[344881635,1733851833208,-710.24,0.00010958,2]
[344881636,1733851833219,-710.24,0.00010958,2]
[344881637,1733851833229,-710.24,0.00010958,2]
[344881638,1733851833240,-710.24,0.00010958,2]
[344881639,1733851833250,-710.24,0.00010958,2]
[344881640,1733851833261,-710.24,0.00010958,2]
[344881641,1733851833271,-710.34987104,0.00010958,2]
[344881642,1733851833282,-500.0,0.00010958,2]
[344881643,1733851833446,-500.0,0.00010958,2]
[344881644,1733851833507,-500.0,0.00010958,2]
[344881645,1733851833518,-500.0,0.00010958,2]
[344881646,1733851833528,-248.8666508,0.00010958,2]
[344881647,1733851833538,-500.0,0.00010958,2]
[344881648,1733851833548,-549.74936101,0.00010958,2]
[344881649,1733851833558,-622.23,0.00010958,2]
[344881650,1733851833575,-500.0,0.00010958,2]
[344881651,1733851833586,-500.0,0.00010958,2]
[344881652,1733851833596,-500.0,0.00010958,2]
[344881653,1733851833606,-500.0,0.00010958,2]
[344881654,1733851833616,-500.0,0.00010958,2]
[344881655,1733851833626,-500.0,0.00010958,2]
[344881656,1733851833637,-206.37655707,0.00010958,2]
[344881657,1733851833647,-500.0,0.00010958,2]
[344881658,1733851833656,-500.0,0.00010958,2]
[344881659,1733851833666,-455.66230213,0.00010958,2]
[344881660,1733851833676,-568.8759257,0.00010958,2]
[344881661,1733851833685,-500.0,0.00010958,2]
[344881662,1733851833694,-500.0,0.00010958,2]
[344881663,1733851833704,-500.0,0.00010958,2]
[344881664,1733851833714,-500.0,0.00010958,2]
[344881665,1733851833724,-500.0,0.00010958,2]
[344881666,1733851833736,-500.0,0.00010958,2]
[344881667,1733851833745,-500.0,0.00010958,2]
[344881668,1733851833755,-500.0,0.00010958,2]
[344881669,1733851833765,-500.0,0.00010958,2]
[344881670,1733851833775,-500.0,0.00010958,2]
[344881671,1733851833785,-500.0,0.00010958,2]
[344881672,1733851833795,-500.0,0.00010958,2]
[344881673,1733851833805,-500.0,0.00010958,2]
[344881674,1733851833820,-500.0,0.00010958,2]
[344881675,1733851833830,-500.0,0.00010958,2]
[344881676,1733851833840,-500.0,0.00010958,2]
[344881677,1733851833851,-500.0,0.00010958,2]
[344881678,1733851833861,-500.0,0.00010958,2]
[344881679,1733851833871,-409.36444949,0.00010958,2]
[344881680,1733851833881,-500.0,0.00010958,2]
[344881681,1733851833891,-340.15,0.00010958,2]
[344881682,1733851833900,-500.0,0.00010958,2]
[344881683,1733851833910,-500.0,0.00010958,2]
[344881684,1733851833919,-500.0,0.00010958,2]
[344881685,1733851833929,-500.0,0.00010958,2]
[344881686,1733851833939,-500.0,0.00010958,2]
[344881687,1733851833949,-500.0,0.00010958,2]
[344881688,1733851833958,-500.0,0.00010958,2]
[344881689,1733851833968,-593.17295498,0.00010958,2]
[344881690,1733851833977,-504.51801241,0.00010958,2]
[344881691,1733851833987,-262.5690028,0.00010958,2]
[344881692,1733851833997,-500.0,0.00010958,2]
[344881693,1733851834007,-500.0,0.00010958,2]
[344881694,1733851834017,-500.0,0.00010958,2]
[344881695,1733851834027,-500.0,0.00010958,2]
[344881696,1733851834036,-500.0,0.00010958,2]
[344881697,1733851834046,-500.0,0.00010958,2]
[344881698,1733851834056,-500.0,0.00010958,2]
[344881699,1733851834071,-241.56692235,0.00010958,2]
[344881700,1733851834081,-500.0,0.00010958,2]
[344881701,1733851834090,-500.0,0.00010958,2]
[344881702,1733851834100,-500.0,0.00010958,2]
[344881703,1733851834115,-535.33352532,0.00010958,2]
[344881704,1733851834125,-500.0,0.00010958,2]
[344881705,1733851834135,-500.0,0.00010958,2]
[344881706,1733851834145,-500.0,0.00010958,2]
[344881707,1733851834155,-500.0,0.00010958,2]
[344881708,1733851834165,-500.0,0.00010958,2]
[344881709,1733851834175,-500.0,0.00010958,2]
[344881710,1733851834185,-500.0,0.00010958,2]
[344881711,1733851834195,-500.0,0.00010958,2]
[344881712,1733851834205,-500.0,0.00010958,2]
[344881713,1733851834215,-500.0,0.00010958,2]
[344881714,1733851834224,-500.0,0.00010958,2]
[344881715,1733851834234,-500.0,0.00010958,2]
[344881716,1733851834244,-500.0,0.00010958,2]
[344881717,1733851834254,-504.56607302,0.00010958,2]
[344881718,1733851834263,-500.0,0.00010958,2]
[344881719,1733851834273,-500.0,0.00010958,2]
[344881720,1733851834283,-500.0,0.00010958,2]
[344881721,1733851834292,-500.0,0.00010958,2]
[344881722,1733851834303,-500.0,0.00010958,2]
[344881723,1733851834317,-500.0,0.00010958,2]
[344881724,1733851834326,-500.0,0.00010958,2]
[344881725,1733851834336,-500.0,0.00010958,2]
[344881726,1733851834346,-500.0,0.00010958,2]
[344881727,1733851834355,-467.72862333,0.00010958,2]
[344881728,1733851834365,-500.0,0.00010958,2]
[344881729,1733851834374,-500.0,0.00010958,2]
[344881730,1733851834384,-500.0,0.00010958,2]
[344881731,1733851834392,-500.0,0.00010958,2]
[344881732,1733851834402,-500.0,0.00010958,2]
[344881733,1733851834411,-516.45674799,0.00010958,2]
[344881734,1733851834421,-500.0,0.00010958,2]
[344881735,1733851834430,-253.57,0.00010958,2]
[344881736,1733851834440,-497.64138281,0.00010958,2]
[344881737,1733851834449,-500.0,0.00010958,2]
[344881738,1733851834459,-500.0,0.00010958,2]
[344881739,1733851834468,-181.47875723,0.00010958,2]
[344881740,1733851834477,-500.0,0.00010958,2]
[344881741,1733851834486,-501.36775633,0.00010958,2]
[344881742,1733851834496,-500.0,0.00010958,2]
[344881743,1733851834505,-500.0,0.00010958,2]
[344881744,1733851834514,-500.0,0.00010958,2]
[344881745,1733851834523,-500.0,0.00010958,2]
[344881746,1733851834533,-500.0,0.00010958,2]
[344881747,1733851834541,-500.0,0.00010958,2]
[344881748,1733851834550,-500.0,0.00010958,2]